bitfinex-derivatives/quotes_BTCF0:USTF0_20250114
["timestamp","ask_amount","ask_price","bid_price","bid_amount"]
[1736864434010,0.3608,96521.0,96512.0,0.064]
[1736864434210,0.36235449,96532.0,96515.0,0.3608]
[1736864434411,0.36235449,96532.0,96522.0,0.10319576]
[1736864434606,0.36235449,96532.0,96523.0,0.0627]
[1736864435605,0.36435449,96532.0,96523.0,0.0627]
[1736864436106,0.36435449,96532.0,96523.0,0.07288071]
[1736864436513,0.36535449,96532.0,96523.0,0.07288071]
[1736864439023,0.00455449,96532.0,96526.0,0.3608]
[1736864440015,0.00355449,96532.0,96526.0,0.3608]
[1736864440216,0.00455449,96532.0,96526.0,0.3608]
[1736864441522,0.00555449,96532.0,96526.0,0.3608]
[1736864443422,0.00555449,96532.0,96527.0,0.3618]
[1736864443918,0.004,96532.0,96528.0,0.051821]
[1736864444424,0.004,96532.0,96529.0,0.001]
[1736864444920,0.004,96532.0,96528.0,0.001]
[1736864445519,0.003,96532.0,96528.0,0.001]
[1736864445723,0.004,96532.0,96528.0,0.001]
[1736864446319,0.004,96532.0,96528.0,0.00094]
[1736864446827,0.3608,96551.0,96529.0,0.051821]
[1736864447025,0.3608,96551.0,96541.0,0.10319576]
[1736864447326,0.3608,96551.0,96542.0,0.0654]
[1736864447521,0.3608,96563.0,96542.0,0.0654]
[1736864447522,0.3608,96563.0,96546.0,0.3608]
[1736864447721,0.3608,96582.0,96556.0,0.3608]
[1736864447918,0.3608,96582.0,96570.0,0.20639152]
[1736864448142,0.3608,96582.0,96571.0,0.1924]
[1736864448317,0.24749075,96583.0,96571.0,0.1924]
[1736864448318,0.24749075,96583.0,96579.0,0.3608]
[1736864448539,0.199845,96588.0,96580.0,0.412593]
[1736864448717,0.199845,96588.0,96580.0,0.413593]
[1736864448925,0.199845,96588.0,96580.0,0.3618]
[1736864449427,0.1,96600.0,96580.0,0.3618]
[1736864449623,0.1,96600.0,96594.0,0.3608]
[1736864449926,0.1,96600.0,96580.0,0.3618]
[1736864450119,0.1,96600.0,96590.0,0.15445638]
[1736864452526,0.1,96600.0,96594.0,0.3608]
[1736864452842,0.1,96600.0,96595.0,0.001]
[1736864453015,0.1,96600.0,96595.0,0.0611]
[1736864454229,0.1,96600.0,96595.0,0.0601]
[1736864454419,0.1,96600.0,96591.0,0.3608]
[1736864454735,0.1,96600.0,96592.0,0.001]
[1736864455325,0.1,96600.0,96594.0,0.001]
[1736864455817,0.1,96600.0,96595.0,0.001]
[1736864456218,0.1,96600.0,96596.0,0.0605]
[1736864456428,0.1,96600.0,96599.0,0.3608]
[1736864457431,0.07135329,96600.0,96599.0,0.3608]
[1736864457833,0.07135329,96600.0,96597.0,0.001]
[1736864458025,0.07135329,96600.0,96596.0,0.0605]
[1736864458227,0.07135329,96600.0,96595.0,0.001]
[1736864458828,0.07135329,96600.0,96596.0,0.001]
[1736864459524,0.3608,96599.0,96596.0,0.001]
[1736864459847,0.3608,96599.0,96583.0,0.0605]
[1736864460328,0.07235329,96600.0,96583.0,0.0605]
[1736864460733,0.061,96599.0,96590.0,0.01016052]
[1736864461135,0.3608,96595.0,96590.0,0.01016052]
[1736864461329,0.0647,96594.0,96571.0,0.00155297]
[1736864461722,0.3608,96587.0,96572.0,0.001]
[1736864462428,0.3608,96587.0,96571.0,0.00155297]
[1736864462627,0.3608,96587.0,96571.0,0.01134294]
[1736864462831,0.3608,96587.0,96571.0,0.00155297]
[1736864463129,0.3608,96587.0,96572.0,0.003]
[1736864463331,0.3608,96586.0,96572.0,0.003]
[1736864463920,0.3608,96586.0,96571.0,0.00155297]
[1736864464732,0.3608,96586.0,96572.0,0.009]
[1736864464933,0.001,96587.0,96572.0,0.009]
[1736864465118,0.3608,96586.0,96577.0,0.15445638]
[1736864465323,0.3608,96585.0,96577.0,0.15445638]
[1736864465930,0.001,96586.0,96577.0,0.15445638]
[1736864466629,0.3608,96585.0,96577.0,0.15445638]
[1736864467638,0.3608,96585.0,96577.0,0.16456466]
[1736864468333,0.3608,96585.0,96577.0,0.01010828]
[1736864468528,0.3608,96585.0,96571.0,0.00155297]
[1736864468725,0.3608,96576.0,96571.0,0.00155297]
[1736864469032,0.0614,96575.0,96571.0,0.00155297]
[1736864469430,0.0614,96575.0,96571.0,0.01132205]
[1736864469628,0.0614,96575.0,96571.0,0.00155297]
[1736864470539,0.001,96585.0,96571.0,0.00155297]
[1736864470738,0.3608,96586.0,96575.0,0.10302404]
[1736864471240,0.0614,96593.0,96575.0,0.10302404]
[1736864471437,0.0614,96593.0,96583.0,0.10302404]
[1736864472527,0.3618,96585.0,96583.0,0.10302404]
[1736864472743,0.3618,96585.0,96571.0,0.00155297]
[1736864473835,0.3608,96572.0,96571.0,0.00155297]
[1736864476627,0.3618,96572.0,96571.0,0.00155297]
[1736864480445,0.3618,96572.0,96571.0,0.18624862]
[1736864480944,0.001,96572.0,96571.0,0.18624862]
[1736864482038,0.001,96572.0,96571.0,0.00155297]
[1736864484241,0.001,96572.0,96571.0,0.18732636]
[1736864485850,0.001,96572.0,96571.0,0.00155297]
[1736864486944,0.0675,96572.0,96571.0,0.00155297]
[1736864487941,0.001,96572.0,96571.0,0.00155297]
[1736864490549,0.001,96572.0,96571.0,0.36335297]
[1736864490750,0.001,96572.0,96571.0,0.39703543]
[1736864491658,0.001,96572.0,96571.0,0.40684104]
[1736864493150,0.001,96572.0,96571.0,0.40683937]
[1736864494146,0.001,96572.0,96571.0,0.38611273]
[1736864494347,0.001,96572.0,96571.0,0.40683935]
[1736864494957,0.3608,96585.0,96571.0,0.40683935]
[1736864495143,0.3608,96585.0,96575.0,0.10302404]
[1736864495350,0.3608,96599.0,96581.0,0.3608]
[1736864495642,0.3608,96599.0,96586.0,0.10302404]
[1736864496049,0.3608,96599.0,96587.0,0.0652]
[1736864496663,0.24588448,96611.0,96590.0,0.3608]
[1736864496851,0.24588448,96611.0,96592.0,0.051787]
[1736864497062,0.00255343,96598.0,96593.0,0.01295294]
[1736864497367,0.001,96598.0,96594.0,0.01295082]
[1736864497550,0.001,96598.0,96593.0,0.001]
[1736864497551,0.001,96598.0,96595.0,0.01295082]
[1736864497756,0.001,96598.0,96596.0,0.01295082]
[1736864498052,0.001,96598.0,96597.0,0.01395082]
[1736864498358,0.001,96598.0,96597.0,0.01295096]
[1736864498547,0.001,96598.0,96596.0,0.001]
[1736864498855,0.001,96598.0,96597.0,0.001]
[1736864499051,0.3608,96606.0,96594.0,0.001]
[1736864499853,0.3608,96627.0,96594.0,0.001]
[1736864500150,0.4259,96627.0,96599.0,0.3608]
[1736864500559,0.4259,96627.0,96599.0,0.3618]
[1736864501251,0.3608,96627.0,96599.0,0.3618]
[1736864501452,0.3608,96627.0,96607.0,0.10302404]
[1736864501653,0.3608,96627.0,96608.0,0.0664]
[1736864502848,0.3608,96627.0,96609.0,0.3618]
[1736864503060,0.3608,96627.0,96617.0,0.10302404]
[1736864503457,0.3608,96627.0,96618.0,0.065]
[1736864505852,0.3608,96627.0,96618.0,0.07514874]
[1736864506059,0.3608,96627.0,96619.0,0.001]
[1736864506358,0.0628,96632.0,96619.0,0.001]
[1736864507364,0.0628,96632.0,96619.0,0.002]
[1736864507867,0.0628,96632.0,96619.0,0.001]
[1736864508059,0.0628,96632.0,96619.0,0.002]
[1736864508675,0.36140001,96638.0,96626.0,0.3608]
[1736864508860,0.3608,96638.0,96626.0,0.3608]
[1736864509053,0.3608,96638.0,96627.0,0.001]
[1736864509361,0.3608,96638.0,96622.0,0.10302404]
[1736864509561,0.0639,96637.0,96622.0,0.10302404]
[1736864510258,0.0639,96637.0,96627.0,0.001]
[1736864511063,0.0639,96637.0,96622.0,0.10302404]
[1736864511064,0.0639,96637.0,96622.0,0.10402404]
[1736864511270,0.0626,96632.0,96622.0,0.10402404]
[1736864512563,0.0626,96632.0,96622.0,0.10302404]
[1736864513163,0.0626,96632.0,96622.0,0.10402404]
[1736864514061,0.0639,96637.0,96622.0,0.10402404]
[1736864514856,0.0639,96637.0,96623.0,0.001]
[1736864517071,0.0639,96637.0,96623.0,0.002]
[1736864517265,0.0646,96644.0,96627.0,0.46382404]
[1736864517466,0.0646,96644.0,96634.0,0.10302404]
[1736864518258,0.0646,96644.0,96630.0,0.20604808]
[1736864518463,0.0646,96644.0,96630.0,0.10302404]
[1736864518663,0.0646,96644.0,96631.0,0.01294667]
[1736864518861,0.3608,96637.0,96630.0,0.10302404]
[1736864519256,0.3608,96637.0,96627.0,0.3608]
[1736864519465,0.3608,96637.0,96627.0,0.46382404]
[1736864520068,0.3608,96637.0,96627.0,0.10302404]
[1736864520272,0.3608,96637.0,96627.0,0.21617418]
[1736864520465,0.0646,96644.0,96628.0,0.37474697]
[1736864520661,0.0646,96644.0,96634.0,0.10302404]
[1736864521771,0.3608,96637.0,96634.0,0.10302404]
[1736864521971,0.0673,96636.0,96627.0,0.11315014]
[1736864522158,0.0673,96636.0,96628.0,0.01294751]
[1736864522469,0.0673,96636.0,96627.0,0.11315014]
[1736864524169,0.0663,96645.0,96632.0,0.3608]
[1736864524369,0.0663,96645.0,96635.0,0.10302404]
[1736864524776,0.0663,96645.0,96636.0,0.001]
[1736864526371,0.3608,96637.0,96626.0,0.18613614]
[1736864526568,0.3608,96637.0,96630.0,0.10302404]
[1736864527563,0.0663,96645.0,96631.0,0.001]
[1736864527784,0.0663,96645.0,96635.0,0.10302404]
[1736864528275,0.3608,96638.0,96635.0,0.10302404]
[1736864528587,0.0663,96645.0,96636.0,0.001]
[1736864529076,0.0663,96645.0,96635.0,0.10302404]
[1736864529468,0.0663,96645.0,96636.0,0.001]
[1736864529670,0.3608,96658.0,96637.0,0.3608]
[1736864529878,0.4232,96658.0,96648.0,0.10302404]
[1736864531190,0.3608,96658.0,96649.0,0.001]
[1736864531379,0.3608,96658.0,96649.0,0.0646]
[1736864532773,0.3608,96658.0,96649.0,0.0656]
[1736864533183,0.3608,96658.0,96649.0,0.0646]
[1736864533385,0.3608,96658.0,96649.0,0.18613614]
[1736864533585,0.1316,96657.0,96649.0,0.18613614]
[1736864533877,0.3608,96658.0,96650.0,0.001]
[1736864534676,0.3608,96658.0,96649.0,0.001]
[1736864535275,0.3608,96658.0,96649.0,0.18713614]
[1736864536384,0.3608,96658.0,96651.0,0.18613614]
[1736864536778,0.0621,96657.0,96651.0,0.18613614]
[1736864537378,0.0621,96657.0,96648.0,0.10302404]
[1736864537577,0.0628,96656.0,96646.0,0.18613614]
[1736864537779,0.3608,96658.0,96649.0,0.001]
[1736864538179,0.3608,96658.0,96649.0,0.18613614]
[1736864538589,0.3608,96658.0,96650.0,0.001]
[1736864538987,0.3608,96658.0,96651.0,0.001]
[1736864539387,0.3608,96658.0,96652.0,0.001]
[1736864539885,0.3608,96658.0,96651.0,0.001]
[1736864540081,0.3608,96658.0,96651.0,0.002]
[1736864540288,0.3608,96658.0,96651.0,0.18813614]
[1736864540787,0.3608,96658.0,96652.0,0.001]
[1736864541290,0.3608,96658.0,96655.0,0.18613614]
[1736864541682,0.3608,96658.0,96656.0,0.001]
[1736864543501,0.3608,96658.0,96656.0,0.002]
[1736864543690,0.3608,96658.0,96656.0,0.18813614]
[1736864544087,0.3608,96658.0,96656.0,0.18713614]
[1736864544890,0.3608,96658.0,96656.0,0.001]
[1736864552598,0.1258,96657.0,96640.0,0.24818152]
[1736864552894,0.3608,96641.0,96640.0,0.35120556]
[1736864553089,0.3608,96641.0,96640.0,0.24818152]
[1736864553890,0.3608,96641.0,96636.0,0.001]
[1736864554586,0.3608,96641.0,96635.0,0.01185249]
[1736864555185,0.3608,96645.0,96635.0,0.01185249]
[1736864555389,0.3608,96645.0,96636.0,0.001]
[1736864555803,0.001,96641.0,96637.0,0.03366059]
[1736864555989,0.001,96641.0,96638.0,0.03366059]
[1736864556187,0.001,96641.0,96639.0,0.03366059]
[1736864556497,0.001,96645.0,96640.0,0.03466059]
[1736864556701,0.001,96645.0,96641.0,0.03365851]
[1736864556994,0.002,96641.0,96639.0,0.001]
[1736864557193,0.002,96641.0,96640.0,0.03365846]
[1736864557697,0.002,96641.0,96640.0,0.03465846]
[1736864558687,0.001,96645.0,96640.0,0.03465707]
[1736864558893,0.001,96645.0,96641.0,0.03365707]
[1736864559087,0.001,96645.0,96642.0,0.03365707]
[1736864559399,0.1258,96657.0,96643.0,0.03365661]
[1736864559595,0.1258,96657.0,96647.0,0.10302404]
[1736864560100,0.1258,96657.0,96648.0,0.001]
[1736864560490,0.1268,96657.0,96648.0,0.001]
[1736864561201,0.001,96657.0,96648.0,0.001]
[1736864561493,0.001,96657.0,96649.0,0.0666]
[1736864561902,0.001,96657.0,96650.0,0.001]
[1736864562088,0.001,96657.0,96649.0,0.0666]
[1736864562601,0.001,96657.0,96650.0,0.001]
[1736864562991,0.001,96657.0,96649.0,0.0666]
[1736864563397,0.001,96657.0,96650.0,0.001]
[1736864563792,0.001,96657.0,96651.0,0.09655481]
[1736864563992,0.001,96657.0,96652.0,0.03365481]
[1736864564193,0.001,96657.0,96653.0,0.03365481]
[1736864564396,0.001,96657.0,96652.0,0.001]
[1736864564599,0.001,96657.0,96654.0,0.001]
[1736864564805,0.001,96657.0,96652.0,0.001]
[1736864564995,0.001,96657.0,96656.0,0.3608]
[1736864565402,0.3608,96678.0,96656.0,0.39545232]
[1736864565596,0.3608,96678.0,96668.0,0.10302404]
[1736864565904,0.001,96657.0,96656.0,0.3618]
[1736864566098,0.001,96657.0,96656.0,0.03465191]
[1736864566294,0.001,96657.0,96656.0,0.001]
[1736864566495,0.3608,96667.0,96656.0,0.001]
[1736864566697,0.3608,96667.0,96657.0,0.10302404]
[1736864567304,0.3608,96667.0,96659.0,0.3608]
[1736864567507,0.3618,96678.0,96659.0,0.3608]
[1736864567820,0.3618,96678.0,96668.0,0.10302404]
[1736864568204,0.3608,96678.0,96668.0,0.10302404]
[1736864568902,0.3608,96678.0,96668.0,0.10402404]
[1736864569106,0.3608,96678.0,96668.0,0.10396024]
[1736864570803,0.3608,96678.0,96668.0,0.001]
[1736864571205,0.3608,96669.0,96668.0,0.001]
[1736864571406,0.3608,96669.0,96668.0,0.01143158]
[1736864571601,0.3608,96669.0,96668.0,0.001]
[1736864572502,0.3608,96669.0,96660.0,0.10302404]
[1736864572698,0.3608,96669.0,96668.0,0.001]
[1736864573911,0.3608,96678.0,96668.0,0.001]
[1736864574099,0.3608,96678.0,96670.0,0.10302404]
[1736864574607,0.36235203,96688.0,96677.0,0.3608]
[1736864574808,0.36235203,96688.0,96678.0,0.10302404]
[1736864576101,0.36235203,96688.0,96678.0,0.10402404]
[1736864577310,0.36235203,96688.0,96679.0,0.001]
[1736864578622,0.36235203,96688.0,96679.0,0.002]
[1736864581016,0.0639,96687.0,96679.0,0.01128404]
[1736864581520,0.36235203,96688.0,96680.0,0.001]
[1736864582218,0.36235203,96688.0,96679.0,0.01128404]
[1736864582409,0.36235203,96688.0,96679.0,0.01028404]
[1736864582619,0.36235203,96688.0,96679.0,0.001]
[1736864584122,0.36235203,96688.0,96680.0,0.001]
[1736864584317,0.0649,96687.0,96680.0,0.001]
[1736864585421,0.0649,96687.0,96679.0,0.001]
[1736864586124,0.0649,96687.0,96680.0,0.001]
[1736864587227,0.3608,96685.0,96680.0,0.001]
[1736864587443,0.0665,96684.0,96680.0,0.001]
[1736864587726,0.0665,96684.0,96679.0,0.001]
[1736864588319,0.0665,96684.0,96680.0,0.001]
[1736864588721,0.0665,96684.0,96670.0,0.11344729]
[1736864588923,0.0665,96684.0,96679.0,0.001]
[1736864590426,0.0665,96684.0,96680.0,0.001]
[1736864591619,0.0665,96684.0,96670.0,0.01042325]
[1736864591831,0.3608,96672.0,96661.0,0.0655]
[1736864592536,0.3608,96672.0,96661.0,0.01037446]
[1736864592729,0.0636,96671.0,96660.0,0.10302404]
[1736864593625,0.0636,96671.0,96660.0,0.11332319]
[1736864593938,0.0636,96671.0,96661.0,0.001]
[1736864594328,0.0636,96671.0,96660.0,0.11332319]
[1736864596016,0.0636,96671.0,96661.0,0.03365066]
[1736864596223,0.0636,96671.0,96660.0,0.11332319]
[1736864597517,0.3608,96663.0,96660.0,0.11332319]
[1736864597723,0.3608,96663.0,96660.0,0.01029915]
[1736864597926,0.3608,96663.0,96658.0,0.00155169]
[1736864598720,0.3608,96663.0,96658.0,0.01195956]
[1736864600130,0.0635,96662.0,96658.0,0.01195956]
[1736864600926,0.0619,96661.0,96658.0,0.01195956]
[1736864601126,0.0619,96661.0,96641.0,0.0025]
[1736864601422,0.3608,96655.0,96641.0,0.0025]
[1736864601627,0.3608,96655.0,96648.0,0.3710277]
[1736864602730,0.3608,96663.0,96648.0,0.3710277]
[1736864603031,0.3608,96675.0,96657.0,0.3608]
[1736864603228,0.3608,96675.0,96660.0,0.10302404]
[1736864606131,0.3608,96675.0,96661.0,0.001]
[1736864609632,0.3608,96675.0,96660.0,0.11325978]
[1736864611144,0.3608,96675.0,96661.0,0.01294224]
[1736864611343,0.3608,96675.0,96660.0,0.11325978]
[1736864611728,0.3608,96666.0,96660.0,0.01023574]
[1736864611936,0.3608,96666.0,96651.0,0.2480625]
[1736864612240,0.3608,96655.0,96644.0,0.2480625]
[1736864612443,0.0625,96654.0,96644.0,0.2480625]
[1736864613639,0.0625,96654.0,96644.0,0.01255028]
[1736864613841,0.0625,96654.0,96640.0,0.10302404]
[1736864614140,0.0625,96654.0,96642.0,0.01294514]
[1736864614344,0.0625,96654.0,96643.0,0.01294514]
[1736864614641,0.0625,96654.0,96644.0,0.01294514]
[1736864614842,0.0625,96654.0,96644.0,0.004]
[1736864615238,0.0625,96654.0,96641.0,0.0045]
[1736864615440,0.0625,96654.0,96642.0,0.01694514]
[1736864615748,0.0625,96654.0,96644.0,0.001]
[1736864617538,0.0625,96654.0,96642.0,0.005]
[1736864617847,0.0625,96654.0,96644.0,0.004]
[1736864618144,0.36140001,96666.0,96644.0,0.004]
[1736864618342,0.36140001,96666.0,96656.0,0.10302404]
[1736864618343,0.3608,96666.0,96656.0,0.10302404]
[1736864618936,0.3608,96666.0,96650.0,0.10302404]
[1736864620945,0.3608,96657.0,96650.0,0.10302404]
[1736864621747,0.3608,96657.0,96650.0,0.10402404]
[1736864622352,0.0638,96656.0,96650.0,0.001]
[1736864622647,0.1279,96656.0,96650.0,0.001]
[1736864623653,0.0629,96655.0,96641.0,0.0025]
[1736864623850,0.10302404,96651.0,96641.0,0.0025]
[1736864624053,0.3608,96647.0,96641.0,0.0025]
[1736864624964,0.3608,96647.0,96641.0,0.0045]
[1736864625148,0.3608,96645.0,96641.0,0.0045]
[1736864625345,0.3608,96645.0,96629.0,0.00054]
[1736864625544,0.3608,96633.0,96629.0,0.00054]
[1736864626548,0.3608,96633.0,96629.0,0.01295008]
[1736864626752,0.3608,96633.0,96629.0,0.00054]
[1736864627050,0.3608,96633.0,96629.0,0.00954]
[1736864627650,0.3608,96633.0,96629.0,0.01354]
[1736864628962,0.3608,96633.0,96629.0,0.02565361]
[1736864629751,0.3608,96637.0,96629.0,0.02565361]
[1736864631448,0.3608,96637.0,96629.0,0.01665361]
[1736864631652,0.3608,96637.0,96629.0,0.02565361]
[1736864632849,0.3608,96646.0,96631.0,0.3608]
[1736864633051,0.3608,96646.0,96636.0,0.10302404]
[1736864633849,0.3608,96646.0,96630.0,0.10302404]
[1736864634048,0.3608,96646.0,96636.0,0.10302404]
[1736864634949,0.3608,96646.0,96636.0,0.11202404]
[1736864637054,0.3608,96646.0,96636.0,0.009]
[1736864637254,0.3608,96638.0,96636.0,0.009]
[1736864638252,0.0673,96637.0,96636.0,0.009]
[1736864639352,0.1318,96637.0,96636.0,0.009]
[1736864640656,0.4926,96637.0,96636.0,0.009]
[1736864641261,0.4281,96637.0,96636.0,0.009]
[1736864641455,0.3608,96637.0,96636.0,0.009]
[1736864642152,0.6608,96637.0,96636.0,0.002]
[1736864642354,0.6608,96637.0,96613.0,0.2480625]
[1736864642557,0.3608,96614.0,96613.0,0.2480625]
[1736864642855,0.3608,96614.0,96608.0,0.24961511]
[1736864643760,0.3608,96614.0,96613.0,0.006]
[1736864644457,0.3608,96614.0,96608.0,0.00555261]
[1736864644863,0.3618,96614.0,96613.0,0.009]
[1736864645255,0.3608,96614.0,96608.0,0.00555261]
[1736864645460,0.3618,96614.0,96613.0,0.008]
[1736864646352,0.3618,96614.0,96613.0,0.011]
[1736864647661,0.3618,96614.0,96613.0,0.003]
[1736864648453,0.3618,96614.0,96613.0,0.011]
[1736864652564,0.10302404,96607.0,96582.0,0.0667]
[1736864652760,0.3608,96600.0,96597.0,0.01268607]
[1736864652961,0.3608,96600.0,96597.0,0.00049]
[1736864653261,0.3608,96600.0,96592.0,0.3608]
[1736864653858,0.3608,96600.0,96597.0,0.004]
[1736864654361,0.001,96614.0,96598.0,0.01295164]
[1736864654568,0.3608,96620.0,96602.0,0.3608]
[1736864654861,0.3608,96620.0,96610.0,0.10302404]
[1736864655658,0.3608,96620.0,96603.0,0.1274]
[1736864655872,0.3618,96620.0,96603.0,0.1274]
[1736864656362,0.3608,96620.0,96610.0,0.004]
[1736864657263,0.3608,96620.0,96610.0,0.10702404]
[1736864657768,0.3608,96620.0,96611.0,0.0608]
[1736864657969,0.3618,96620.0,96611.0,0.0608]
[1736864658167,0.3618,96620.0,96612.0,0.051776]
[1736864658369,0.3608,96644.0,96620.0,0.051772]
[1736864658672,0.3608,96644.0,96623.0,0.05177]
[1736864658867,0.3608,96644.0,96628.0,0.3608]
[1736864659067,0.36140001,96650.0,96641.0,0.3608]
[1736864659272,0.3608,96650.0,96640.0,0.10302404]
[1736864660083,0.3608,96650.0,96639.0,0.3608]
[1736864660560,0.46382404,96650.0,96639.0,0.01219917]
[1736864660768,0.46382404,96650.0,96635.0,0.0625]
[1736864661269,0.3608,96641.0,96635.0,0.0625]
[1736864662063,0.3608,96641.0,96635.0,0.07460358]
[1736864662678,0.3658,96641.0,96635.0,0.07460358]
[1736864663182,0.3658,96641.0,96635.0,0.01210358]
[1736864663382,0.3658,96641.0,96628.0,0.3608]
[1736864663784,0.3688,96641.0,96628.0,0.3608]
[1736864664089,0.3688,96641.0,96624.0,0.1315]
[1736864664475,0.3668,96641.0,96624.0,0.1315]
[1736864664685,0.3638,96641.0,96624.0,0.1315]
[1736864664885,0.3638,96641.0,96630.0,0.10302404]
[1736864665383,0.3628,96641.0,96630.0,0.10302404]
[1736864666183,0.002,96641.0,96630.0,0.10302404]
[1736864666383,0.001,96641.0,96630.0,0.10302404]
[1736864666578,0.002,96641.0,96630.0,0.10302404]
[1736864667288,0.001,96641.0,96630.0,0.10302404]
[1736864667484,0.005,96641.0,96630.0,0.10302404]
[1736864670692,0.3608,96640.0,96630.0,0.10302404]
[1736864671088,0.005,96641.0,96630.0,0.10302404]
[1736864671293,0.3608,96639.0,96630.0,0.10302404]
[1736864671489,0.005,96641.0,96630.0,0.10302404]
[1736864671696,0.3608,96638.0,96624.0,0.14369457]
[1736864672193,0.3608,96638.0,96628.0,0.10302404]
[1736864673891,0.3618,96638.0,96628.0,0.10302404]
[1736864674286,0.3638,96638.0,96628.0,0.10302404]
[1736864675588,0.3638,96638.0,96624.0,0.14369457]
[1736864676290,0.3638,96638.0,96628.0,0.10302404]
[1736864677399,0.3628,96638.0,96628.0,0.10302404]
[1736864677605,0.3608,96630.0,96624.0,0.14369457]
[1736864677900,0.3608,96630.0,96620.0,0.10302404]
[1736864677901,0.3608,96626.0,96611.0,0.18528364]
[1736864678093,0.3608,96612.0,96611.0,0.18528364]
[1736864678598,0.3608,96612.0,96609.0,0.01182512]
[1736864678798,0.3608,96612.0,96608.0,0.00155247]
[1736864679996,0.3608,96612.0,96608.0,0.01365827]
[1736864680200,0.3608,96612.0,96611.0,0.005]
[1736864680695,0.3618,96612.0,96608.0,0.00955247]
[1736864681401,0.3608,96612.0,96611.0,0.006]
[1736864681990,0.3618,96612.0,96611.0,0.001]
[1736864683396,0.3618,96612.0,96608.0,0.01968438]
[1736864683701,0.3618,96612.0,96608.0,0.02168438]
[1736864684105,0.3608,96612.0,96611.0,0.005]
[1736864684401,0.3608,96612.0,96611.0,0.006]
[1736864684594,0.3618,96612.0,96611.0,0.001]
[1736864684999,0.3618,96612.0,96608.0,0.02168438]
[1736864685298,0.3608,96612.0,96611.0,0.005]
[1736864686696,0.3608,96612.0,96611.0,0.006]
[1736864687108,0.3608,96612.0,96611.0,0.001]
[1736864687301,0.3618,96612.0,96611.0,0.001]
[1736864687809,0.3608,96612.0,96611.0,0.006]
[1736864690913,0.3608,96626.0,96611.0,0.006]
[1736864691100,0.3608,96626.0,96616.0,0.10302404]
[1736864691309,0.3608,96626.0,96612.0,0.1242]
[1736864691310,0.3608,96626.0,96617.0,0.0623]
[1736864693513,0.3608,96626.0,96617.0,0.0643]
[1736864695719,0.3608,96626.0,96617.0,0.07574927]
[1736864699711,0.3608,96618.0,96617.0,0.07574927]
[1736864700112,0.0113891,96638.0,96617.0,0.43654927]
[1736864700310,0.00064,96646.0,96638.0,0.051762]
[1736864700510,0.00155261,96658.0,96646.0,0.051758]
[1736864700726,0.00155261,96658.0,96653.0,0.3608]
[1736864701022,0.00155261,96658.0,96654.0,1.5]
[1736864701924,0.003,96655.0,96654.0,1.5]
[1736864703115,0.005,96655.0,96654.0,1.5]
[1736864703315,0.005,96655.0,96654.0,1.8608]
[1736864703522,0.002,96655.0,96654.0,1.8608]
[1736864703727,0.009,96655.0,96654.0,1.8618]
[1736864703919,0.01,96655.0,96654.0,1.8618]
[1736864704328,0.3608,96668.0,96654.0,1.8618]
[1736864704628,0.0592,96681.0,96663.0,0.3608]
[1736864704834,0.0592,96681.0,96670.0,0.10302404]
[1736864706517,0.36136001,96689.0,96670.0,0.10302404]
[1736864706718,0.3608,96689.0,96670.0,0.10302404]
[1736864706924,0.006,96681.0,96670.0,0.10302404]
[1736864707122,0.01,96681.0,96670.0,0.10302404]
[1736864707520,0.01,96681.0,96671.0,0.061]
[1736864707920,0.3618,96682.0,96672.0,1.5]
[1736864709726,0.005,96681.0,96672.0,1.5]
[1736864710223,0.009,96681.0,96672.0,1.5]
[1736864710725,0.3608,96674.0,96671.0,0.001]
[1736864710927,0.3608,96674.0,96670.0,0.01162723]
[1736864710928,0.3608,96674.0,96672.0,0.001]
[1736864711320,0.004,96681.0,96672.0,0.001]
[1736864712417,0.004,96681.0,96671.0,0.10302404]
[1736864712626,0.009,96681.0,96672.0,0.001]
[1736864713023,0.004,96674.0,96672.0,0.001]
[1736864713519,0.004,96674.0,96669.0,0.3608]
[1736864713828,0.009,96681.0,96671.0,0.001]
[1736864714125,0.004,96681.0,96677.0,0.3608]
[1736864715133,0.3608,96685.0,96677.0,0.3608]
[1736864715321,0.3608,96685.0,96671.0,0.10302404]
[1736864715626,0.3608,96677.0,96671.0,0.10302404]
[1736864715834,0.3608,96677.0,96664.0,0.13863989]
[1736864716021,0.003,96674.0,96664.0,0.07393989]
[1736864716614,0.1883,96676.0,96664.0,0.07393989]
[1736864717618,0.1893,96676.0,96664.0,0.07393989]
[1736864718625,0.1893,96676.0,96665.0,1.5]
[1736864718919,0.001,96674.0,96665.0,1.5]
[1736864719316,0.1893,96676.0,96665.0,1.5]
[1736864719523,0.1903,96676.0,96665.0,1.5]
[1736864719923,0.1883,96676.0,96665.0,1.5]
[1736864720122,0.001,96674.0,96664.0,0.07393989]
[1736864720323,0.001,96674.0,96660.0,0.10302404]
[1736864720324,0.3608,96666.0,96630.0,0.0006]
[1736864720523,0.3608,96643.0,96636.0,0.1281]
[1736864720720,0.3608,96643.0,96637.0,0.01291067]
[1736864721316,0.3608,96643.0,96637.0,0.00155214]
[1736864721737,0.3608,96643.0,96637.0,0.00555214]
[1736864722930,0.3608,96638.0,96609.0,0.1179]
[1736864723427,0.3608,96638.0,96627.0,0.01168259]
[1736864724139,0.3608,96638.0,96637.0,0.003]
[1736864724732,0.3608,96638.0,96627.0,0.01168259]
[1736864724928,0.3618,96638.0,96627.0,0.01168259]